[Event "Early-Titled-Tuesday-Blitz-January-30-2024"]
[Site "Chess.com"]
[Date "2024.01.30"]
[Round "7"]
[White "InitiatingASC"]
[Black "Sadykov_Ramil"]
[Result "1/2-1/2"]
[WhiteElo "2420"]
[BlackElo "2594"]
[TimeControl "180+1"]
[EndTime "9:20:40 PST"]
[Termination "Game drawn - insufficient material"]

1. d4 {[%clk 0:03:00.9]} 1... d6 {[%clk 0:02:51.9]} 2. e4 {[%clk 0:02:56.5]}
2... Nf6 {[%clk 0:02:49.3]} 3. Nc3 {[%clk 0:02:55.3]} 3... e5 {[%clk 0:02:48.9]}
4. dxe5 {[%clk 0:02:54.2]} 4... dxe5 {[%clk 0:02:49.8]} 5. Qxd8+ {[%clk
0:02:53.9]} 5... Kxd8 {[%clk 0:02:50.7]} 6. Nf3 {[%clk 0:02:52.5]} 6... Nfd7
{[%clk 0:02:37.1]} 7. Ng5 {[%clk 0:02:45.7]} 7... Ke8 {[%clk 0:02:16.8]} 8. Bc4
{[%clk 0:02:41.3]} 8... h6 {[%clk 0:02:13.7]} 9. Nxf7 {[%clk 0:02:31.9]} 9...
Rh7 {[%clk 0:02:13.8]} 10. Nd5 {[%clk 0:02:32.3]} 10... Kxf7 {[%clk 0:01:55.6]}
11. Nxc7+ {[%clk 0:02:29.2]} 11... Ke7 {[%clk 0:01:25.7]} 12. Nxa8 {[%clk
0:02:26]} 12... Kd8 {[%clk 0:01:25.7]} 13. Be3 {[%clk 0:02:23.8]} 13... Nc6
{[%clk 0:01:25]} 14. O-O-O {[%clk 0:02:19.3]} 14... b6 {[%clk 0:01:22.1]} 15.
Bb5 {[%clk 0:02:12.9]} 15... Bb7 {[%clk 0:01:20.2]} 16. Bxb6+ {[%clk 0:01:05.3]}
16... axb6 {[%clk 0:01:21.1]} 17. Nxb6 {[%clk 0:01:05.3]} 17... g5 {[%clk
0:01:15]} 18. Rd5 {[%clk 0:00:56.6]} 18... Kc7 {[%clk 0:01:10]} 19. Nxd7 {[%clk
0:00:48]} 19... Rxd7 {[%clk 0:01:10.9]} 20. Rxd7+ {[%clk 0:00:47.1]} 20... Kxd7
{[%clk 0:01:11.1]} 21. Rd1+ {[%clk 0:00:45.8]} 21... Kc7 {[%clk 0:01:09]} 22. c3
{[%clk 0:00:43]} 22... g4 {[%clk 0:00:58.4]} 23. a4 {[%clk 0:00:36]} 23... h5
{[%clk 0:00:50.5]} 24. Kc2 {[%clk 0:00:33.1]} 24... Bh6 {[%clk 0:00:42.8]} 25.
h3 {[%clk 0:00:23.9]} 25... gxh3 {[%clk 0:00:36.5]} 26. gxh3 {[%clk 0:00:23.9]}
26... h4 {[%clk 0:00:36.8]} 27. Rg1 {[%clk 0:00:18.6]} 27... Bf4 {[%clk
0:00:29.8]} 28. Rg4 {[%clk 0:00:18.4]} 28... Na7 {[%clk 0:00:19.6]} 29. f3
{[%clk 0:00:16.9]} 29... Nxb5 {[%clk 0:00:18.1]} 30. axb5 {[%clk 0:00:17.4]}
30... Kb6 {[%clk 0:00:18.6]} 31. Rxh4 {[%clk 0:00:16.5]} 31... Kxb5 {[%clk
0:00:18.7]} 32. Rh7 {[%clk 0:00:15.8]} 32... Bc8 {[%clk 0:00:18.1]} 33. b3
{[%clk 0:00:14.7]} 33... Be6 {[%clk 0:00:17.7]} 34. c4+ {[%clk 0:00:14.7]} 34...
Kc5 {[%clk 0:00:17.8]} 35. Rb7 {[%clk 0:00:13.3]} 35... Bxh3 {[%clk 0:00:17.3]}
36. Rb5+ {[%clk 0:00:10.7]} 36... Kc6 {[%clk 0:00:17]} 37. Ra5 {[%clk
0:00:10.7]} 37... Bg2 {[%clk 0:00:16.8]} 38. Ra6+ {[%clk 0:00:10.8]} 38... Kb7
{[%clk 0:00:14.1]} 39. Ra5 {[%clk 0:00:09.8]} 39... Bxf3 {[%clk 0:00:13.9]} 40.
Kd3 {[%clk 0:00:10.4]} 40... Kc6 {[%clk 0:00:13.5]} 41. b4 {[%clk 0:00:09.9]}
41... Bg2 {[%clk 0:00:11.7]} 42. b5+ {[%clk 0:00:09.9]} 42... Kc5 {[%clk
0:00:11.7]} 43. Ra4 {[%clk 0:00:09.3]} 43... Bf1+ {[%clk 0:00:11.2]} 44. Kc3
{[%clk 0:00:09.9]} 44... Be3 {[%clk 0:00:10.8]} 45. Kb3 {[%clk 0:00:09.2]} 45...
Bd4 {[%clk 0:00:10.6]} 46. b6 {[%clk 0:00:07.3]} 46... Kxb6 {[%clk 0:00:10.5]}
47. Rb4+ {[%clk 0:00:06.5]} 47... Kc5 {[%clk 0:00:10.3]} 48. Rb5+ {[%clk
0:00:07]} 48... Kc6 {[%clk 0:00:10.7]} 49. Rd5 {[%clk 0:00:06.9]} 49... Bg2
{[%clk 0:00:10.1]} 50. Rd8 {[%clk 0:00:06.1]} 50... Bxe4 {[%clk 0:00:09.8]} 51.
Rc8+ {[%clk 0:00:06.2]} 51... Kb7 {[%clk 0:00:09.4]} 52. Rd8 {[%clk 0:00:06.4]}
52... Kc7 {[%clk 0:00:09.4]} 53. Re8 {[%clk 0:00:06.2]} 53... Bc6 {[%clk
0:00:08.9]} 54. Re6 {[%clk 0:00:05.8]} 54... Kd7 {[%clk 0:00:09]} 55. Rh6 {[%clk
0:00:05.8]} 55... Be3 {[%clk 0:00:05.9]} 56. Rh7+ {[%clk 0:00:05.5]} 56... Kd6
{[%clk 0:00:06.1]} 57. Kc3 {[%clk 0:00:05.8]} 57... Be4 {[%clk 0:00:05.3]} 58.
Rh3 {[%clk 0:00:04.9]} 58... Bd4+ {[%clk 0:00:04.8]} 59. Kb4 {[%clk 0:00:05.1]}
59... Bc5+ {[%clk 0:00:02.3]} 60. Kb5 {[%clk 0:00:04.3]} 60... Bd4 {[%clk
0:00:02]} 61. Rh6+ {[%clk 0:00:03.9]} 61... Kc7 {[%clk 0:00:02.3]} 62. c5 {[%clk
0:00:04.5]} 62... Bd3+ {[%clk 0:00:02.6]} 63. Kb4 {[%clk 0:00:04.7]} 63... e4
{[%clk 0:00:02.6]} 64. Rd6 {[%clk 0:00:03.6]} 64... Be5 {[%clk 0:00:02.3]} 65.
Rd5 {[%clk 0:00:03.1]} 65... Bf4 {[%clk 0:00:02.6]} 66. Rd4 {[%clk 0:00:03]}
66... Bd2+ {[%clk 0:00:02.6]} 67. Kb3 {[%clk 0:00:02.3]} 67... Be3 {[%clk
0:00:02.9]} 68. Rd5 {[%clk 0:00:02.5]} 68... Kc6 {[%clk 0:00:03]} 69. Re5 {[%clk
0:00:03]} 69... Bxc5 {[%clk 0:00:03]} 70. Kc3 {[%clk 0:00:03.5]} 70... Bd6
{[%clk 0:00:03.5]} 71. Rh5 {[%clk 0:00:02.6]} 71... Kd7 {[%clk 0:00:03.5]} 72.
Kd4 {[%clk 0:00:03]} 72... Ke6 {[%clk 0:00:03.2]} 73. Rh6+ {[%clk 0:00:03.2]}
73... Ke7 {[%clk 0:00:03.4]} 74. Rh4 {[%clk 0:00:03.7]} 74... Bc2 {[%clk
0:00:02.6]} 75. Rxe4+ {[%clk 0:00:04]} 75... Bxe4 {[%clk 0:00:02.8]} 76. Kxe4
{[%clk 0:00:04.3]} 1/2-1/2

[Event "Early-Titled-Tuesday-Blitz-January-30-2024"]
[Site "Chess.com"]
[Date "2024.01.30"]
[Round "7"]
[White "nindjaxx8"]
[Black "alekroth65"]
[Result "1-0"]
[WhiteElo "2592"]
[BlackElo "2362"]
[TimeControl "180+1"]
[EndTime "9:20:43 PST"]
[Termination "nindjaxx8 won on time"]

1. d4 {[%clk 0:02:03.1]} 1... d6 {[%clk 0:02:58.4]} 2. c4 {[%clk 0:02:00.4]}
2... e5 {[%clk 0:02:58.1]} 3. Nc3 {[%clk 0:01:57.5]} 3... exd4 {[%clk 0:02:56]}
4. Qxd4 {[%clk 0:01:57.7]} 4... Nc6 {[%clk 0:02:56.4]} 5. Qd2 {[%clk 0:01:58]}
5... Nf6 {[%clk 0:02:54.4]} 6. b3 {[%clk 0:01:57.7]} 6... Be6 {[%clk 0:02:52.1]}
7. Bb2 {[%clk 0:01:58.1]} 7... d5 {[%clk 0:02:50]} 8. cxd5 {[%clk 0:01:55.4]}
8... Nxd5 {[%clk 0:02:49.2]} 9. e3 {[%clk 0:01:34.6]} 9... Bb4 {[%clk
0:02:35.4]} 10. Nf3 {[%clk 0:01:28.4]} 10... Nxc3 {[%clk 0:02:31.4]} 11. Bxc3
{[%clk 0:01:29.3]} 11... Qxd2+ {[%clk 0:02:29.2]} 12. Bxd2 {[%clk 0:01:26.5]}
12... O-O-O {[%clk 0:02:28.6]} 13. Bb5 {[%clk 0:00:55.7]} 13... Rd6 {[%clk
0:02:09.4]} 14. Bxc6 {[%clk 0:00:44.8]} 14... Bxd2+ {[%clk 0:02:08.7]} 15. Nxd2
{[%clk 0:00:44.4]} 15... Rxc6 {[%clk 0:02:08.4]} 16. Ke2 {[%clk 0:00:43.4]}
16... Rd8 {[%clk 0:02:07.1]} 17. Rac1 {[%clk 0:00:41.6]} 17... Ra6 {[%clk
0:01:59.6]} 18. Rc2 {[%clk 0:00:41.4]} 18... Bf5 {[%clk 0:01:59.3]} 19. e4
{[%clk 0:00:40.3]} 19... Bg6 {[%clk 0:01:41]} 20. Rhc1 {[%clk 0:00:39.8]} 20...
c6 {[%clk 0:01:37.2]} 21. f4 {[%clk 0:00:35.1]} 21... Re8 {[%clk 0:01:29.6]} 22.
Kf3 {[%clk 0:00:34.6]} 22... f5 {[%clk 0:01:26.8]} 23. e5 {[%clk 0:00:33.4]}
23... Bf7 {[%clk 0:01:26.2]} 24. Nf1 {[%clk 0:00:26.9]} 24... Bd5+ {[%clk
0:01:23.5]} 25. Kf2 {[%clk 0:00:25.2]} 25... Be4 {[%clk 0:01:21.7]} 26. Rd2
{[%clk 0:00:25.2]} 26... Rd8 {[%clk 0:01:19.4]} 27. Rcd1 {[%clk 0:00:21.4]}
27... Rxd2+ {[%clk 0:01:12.8]} 28. Rxd2 {[%clk 0:00:21.8]} 28... c5 {[%clk
0:01:12.5]} 29. Ne3 {[%clk 0:00:18.9]} 29... Rc6 {[%clk 0:01:12.1]} 30. Nc4
{[%clk 0:00:18.8]} 30... Kc7 {[%clk 0:01:08.7]} 31. Nd6 {[%clk 0:00:18]} 31...
g6 {[%clk 0:00:59.7]} 32. Ke3 {[%clk 0:00:17.4]} 32... a6 {[%clk 0:00:49.9]} 33.
Nxe4 {[%clk 0:00:17.2]} 33... fxe4 {[%clk 0:00:48.2]} 34. Kxe4 {[%clk
0:00:18.1]} 34... b5 {[%clk 0:00:45.7]} 35. g4 {[%clk 0:00:17.9]} 35... c4
{[%clk 0:00:41]} 36. Rc2 {[%clk 0:00:14.6]} 36... c3 {[%clk 0:00:34.5]} 37. a3
{[%clk 0:00:08.9]} 37... a5 {[%clk 0:00:32.9]} 38. f5 {[%clk 0:00:06.3]} 38...
b4 {[%clk 0:00:31.1]} 39. axb4 {[%clk 0:00:06.3]} 39... axb4 {[%clk 0:00:30.3]}
40. Kd5 {[%clk 0:00:04]} 40... Ra6 {[%clk 0:00:28.5]} 41. e6 {[%clk 0:00:03.1]}
41... Ra1 {[%clk 0:00:23.4]} 42. Kc4 {[%clk 0:00:01.6]} 42... gxf5 {[%clk
0:00:20.5]} 43. gxf5 {[%clk 0:00:01.9]} 43... Rf1 {[%clk 0:00:20.3]} 44. Kxb4
{[%clk 0:00:02.3]} 44... Rxf5 {[%clk 0:00:20]} 45. Rxc3+ {[%clk 0:00:02.9]}
45... Kd6 {[%clk 0:00:19.6]} 46. Re3 {[%clk 0:00:03.5]} 46... Rf4+ {[%clk
0:00:19.4]} 47. Ka5 {[%clk 0:00:03.2]} 47... Rf8 {[%clk 0:00:19.5]} 48. b4
{[%clk 0:00:02.6]} 48... Ra8+ {[%clk 0:00:16]} 49. Kb5 {[%clk 0:00:02.8]} 49...
Ke7 {[%clk 0:00:16.1]} 50. Kc5 {[%clk 0:00:02.2]} 50... Rb8 {[%clk 0:00:15.4]}
51. b5 {[%clk 0:00:02.3]} 51... Rc8+ {[%clk 0:00:15.5]} 52. Kb4 {[%clk
0:00:02.5]} 52... Rb8 {[%clk 0:00:15.9]} 53. Ka5 {[%clk 0:00:02.2]} 53... Ra8+
{[%clk 0:00:15.9]} 54. Kb6 {[%clk 0:00:03]} 54... Rb8+ {[%clk 0:00:16.2]} 55.
Kc6 {[%clk 0:00:03.7]} 55... Rc8+ {[%clk 0:00:16.1]} 56. Kb7 {[%clk 0:00:04.2]}
56... Rc2 {[%clk 0:00:15.6]} 57. b6 {[%clk 0:00:04.6]} 57... Rxh2 {[%clk
0:00:13]} 58. Ka7 {[%clk 0:00:03.5]} 58... Ra2+ {[%clk 0:00:12.1]} 59. Kb8
{[%clk 0:00:03.8]} 59... h5 {[%clk 0:00:11.3]} 60. b7 {[%clk 0:00:03.7]} 60...
h4 {[%clk 0:00:11.2]} 61. Kc8 {[%clk 0:00:01.9]} 61... Rc2+ {[%clk 0:00:11.1]}
62. Kb8 {[%clk 0:00:02.5]} 62... Rb2 {[%clk 0:00:11]} 63. Rh3 {[%clk 0:00:02.5]}
63... Rb4 {[%clk 0:00:09.9]} 64. Kc7 {[%clk 0:00:02.9]} 64... Rc4+ {[%clk
0:00:09.4]} 65. Kb6 {[%clk 0:00:03.3]} 65... Rb4+ {[%clk 0:00:09.4]} 66. Kc6
{[%clk 0:00:03.9]} 66... Kxe6 {[%clk 0:00:07.8]} 67. Rxh4 {[%clk 0:00:02.4]}
67... Rxh4 {[%clk 0:00:07]} 68. b8=Q {[%clk 0:00:02.4]} 68... Re4 {[%clk
0:00:06.1]} 69. Qe8+ {[%clk 0:00:02]} 69... Kf5 {[%clk 0:00:05.8]} 70. Qh5+
{[%clk 0:00:02.3]} 70... Kf4 {[%clk 0:00:04.8]} 71. Kd5 {[%clk 0:00:03]} 71...
Re3 {[%clk 0:00:02.8]} 72. Qh4+ {[%clk 0:00:03.5]} 1-0

[Event "Early-Titled-Tuesday-Blitz-January-30-2024"]
[Site "Chess.com"]
[Date "2024.01.30"]
[Round "7"]
[White "Korchmar_Vasiliy"]
[Black "Cambek64"]
[Result "1-0"]
[WhiteElo "2712"]
[BlackElo "2516"]
[TimeControl "180+1"]
[EndTime "9:20:44 PST"]
[Termination "Korchmar_Vasiliy won on time"]

1. e4 {[%clk 0:03:00.9]} 1... e6 {[%clk 0:02:54.7]} 2. d4 {[%clk 0:03:00.8]}
2... d5 {[%clk 0:02:55.4]} 3. e5 {[%clk 0:03:01.3]} 3... c5 {[%clk 0:02:55.1]}
4. c3 {[%clk 0:03:02]} 4... Nc6 {[%clk 0:02:55.4]} 5. Nf3 {[%clk 0:03:02.6]}
5... Bd7 {[%clk 0:02:55.2]} 6. Be2 {[%clk 0:03:01.4]} 6... Nge7 {[%clk
0:02:53.8]} 7. Na3 {[%clk 0:03:00.8]} 7... cxd4 {[%clk 0:02:53.8]} 8. cxd4
{[%clk 0:03:00.4]} 8... Nf5 {[%clk 0:02:54.5]} 9. Nc2 {[%clk 0:03:00.3]} 9...
Qb6 {[%clk 0:02:53.3]} 10. O-O {[%clk 0:02:47.8]} 10... h5 {[%clk 0:02:52.4]}
11. Bd3 {[%clk 0:02:45.8]} 11... Ncxd4 {[%clk 0:02:41.1]} 12. Nfxd4 {[%clk
0:02:45.5]} 12... Nxd4 {[%clk 0:02:41.3]} 13. Be3 {[%clk 0:02:46.2]} 13... Bc5
{[%clk 0:02:36.3]} 14. b4 {[%clk 0:02:45.1]} 14... Bxb4 {[%clk 0:02:31.7]} 15.
Bxd4 {[%clk 0:02:40.9]} 15... Qa5 {[%clk 0:02:30.9]} 16. Nxb4 {[%clk 0:02:38.5]}
16... Qxb4 {[%clk 0:02:30.9]} 17. Be2 {[%clk 0:02:29.4]} 17... Bc6 {[%clk
0:02:25.9]} 18. Rb1 {[%clk 0:02:24.2]} 18... Qe7 {[%clk 0:02:26.3]} 19. Qc1
{[%clk 0:02:20.3]} 19... Qh4 {[%clk 0:02:23.6]} 20. Bc5 {[%clk 0:02:17.1]} 20...
Rh6 {[%clk 0:02:22]} 21. g3 {[%clk 0:02:15.5]} 21... Rg6 {[%clk 0:02:21.2]} 22.
Bf3 {[%clk 0:02:12.8]} 22... Kd7 {[%clk 0:02:12.1]} 23. Rb4 {[%clk 0:02:12.6]}
23... Qh3 {[%clk 0:02:04.8]} 24. Qb1 {[%clk 0:02:09.4]} 24... h4 {[%clk
0:01:58.4]} 25. Rxb7+ {[%clk 0:02:08.1]} 25... Kc8 {[%clk 0:01:55.3]} 26. Bg2
{[%clk 0:01:52.7]} 26... Qg4 {[%clk 0:01:11.6]} 27. Bd6 {[%clk 0:01:51.3]} 27...
hxg3 {[%clk 0:01:01.7]} 28. hxg3 {[%clk 0:01:44.4]} 28... Qd4 {[%clk 0:00:38]}
29. Rc7+ {[%clk 0:01:43.1]} 29... Kd8 {[%clk 0:00:36.9]} 30. Rd1 {[%clk
0:01:33.7]} 30... Qc4 {[%clk 0:00:32.9]} 31. Rc1 {[%clk 0:01:32.4]} 31... Qd4
{[%clk 0:00:32.4]} 32. R1xc6 {[%clk 0:01:32.1]} 32... Rxg3 {[%clk 0:00:32.8]}
33. Rd7+ {[%clk 0:01:26.9]} 33... Ke8 {[%clk 0:00:30.1]} 34. Re7+ {[%clk
0:01:17.7]} 34... Kd8 {[%clk 0:00:29.9]} 35. Qf1 {[%clk 0:00:45.9]} 35... Rb8
{[%clk 0:00:19.1]} 36. Bxb8 {[%clk 0:00:30]} 36... Kxe7 {[%clk 0:00:18.9]} 37.
Bd6+ {[%clk 0:00:30.3]} 37... Kd8 {[%clk 0:00:18.2]} 38. Bc5 {[%clk 0:00:17.1]}
38... Rxg2+ {[%clk 0:00:15]} 39. Qxg2 {[%clk 0:00:17.1]} 39... Qa4 {[%clk
0:00:14.6]} 40. Rd6+ {[%clk 0:00:09.4]} 40... Ke8 {[%clk 0:00:12.7]} 41. Qf3
{[%clk 0:00:06.4]} 41... Qxa2 {[%clk 0:00:10.5]} 42. Kg2 {[%clk 0:00:04.8]}
42... Qb1 {[%clk 0:00:10.4]} 43. Qg4 {[%clk 0:00:03.7]} 43... Qd3 {[%clk
0:00:08.8]} 44. Bd4 {[%clk 0:00:04.1]} 44... g6 {[%clk 0:00:07.8]} 45. Rc6
{[%clk 0:00:03.1]} 45... Qf5 {[%clk 0:00:06.2]} 46. Rc8+ {[%clk 0:00:03.1]}
46... Kd7 {[%clk 0:00:04.2]} 47. Qxf5 {[%clk 0:00:04]} 47... exf5 {[%clk
0:00:03.8]} 48. Ra8 {[%clk 0:00:04.9]} 48... Kc6 {[%clk 0:00:03.9]} 49. Rxa7
{[%clk 0:00:05.8]} 49... Kb5 {[%clk 0:00:04.6]} 50. Kg3 {[%clk 0:00:06.2]} 50...
Kc4 {[%clk 0:00:05.4]} 51. Be3 {[%clk 0:00:05.9]} 51... d4 {[%clk 0:00:04.4]}
52. Ra4+ {[%clk 0:00:06.1]} 52... Kd5 {[%clk 0:00:04.6]} 53. Bxd4 {[%clk
0:00:06.4]} 53... Ke4 {[%clk 0:00:04.5]} 54. Ba1+ {[%clk 0:00:05.7]} 54... Kd3
{[%clk 0:00:04.4]} 55. Kf4 {[%clk 0:00:05.9]} 55... g5+ {[%clk 0:00:05]} 56.
Kxf5 {[%clk 0:00:05.9]} 56... g4 {[%clk 0:00:04.8]} 57. Kf6 {[%clk 0:00:05.9]}
57... g3 {[%clk 0:00:05.7]} 58. fxg3 {[%clk 0:00:05.3]} 58... Ke2 {[%clk
0:00:04.9]} 59. Kxf7 {[%clk 0:00:05.3]} 59... Kf3 {[%clk 0:00:04.9]} 60. g4
{[%clk 0:00:05.7]} 60... Kg3 {[%clk 0:00:01.9]} 61. g5 {[%clk 0:00:06]} 61...
Kf3 {[%clk 0:00:01.1]} 62. g6 {[%clk 0:00:06.5]} 62... Ke3 {[%clk 0:00:01.7]}
63. g7 {[%clk 0:00:06.8]} 63... Kd3 {[%clk 0:00:02.6]} 64. g8=Q {[%clk
0:00:07.2]} 64... Kc2 {[%clk 0:00:03.5]} 65. Qg3 {[%clk 0:00:06.9]} 65... Kb1
{[%clk 0:00:03.1]} 66. Rb4+ {[%clk 0:00:06.3]} 66... Ka2 {[%clk 0:00:03]} 67.
Qb3+ {[%clk 0:00:05.9]} 1-0

[Event "Early-Titled-Tuesday-Blitz-January-30-2024"]
[Site "Chess.com"]
[Date "2024.01.30"]
[Round "7"]
[White "Juicy_Fork"]
[Black "ritanovikova"]
[Result "1-0"]
[WhiteElo "2431"]
[BlackElo "2198"]
[TimeControl "180+1"]
[EndTime "9:20:46 PST"]
[Termination "Juicy_Fork won by checkmate"]

1. e4 {[%clk 0:02:57.6]} 1... d5 {[%clk 0:02:38.8]} 2. exd5 {[%clk 0:02:58.5]}
2... Qxd5 {[%clk 0:02:33.7]} 3. Nc3 {[%clk 0:02:56.4]} 3... Qd6 {[%clk
0:02:33.4]} 4. d4 {[%clk 0:02:54.8]} 4... Nf6 {[%clk 0:02:33.1]} 5. Nf3 {[%clk
0:02:53.6]} 5... c6 {[%clk 0:02:30.7]} 6. Ne5 {[%clk 0:02:52.3]} 6... Nbd7
{[%clk 0:02:29.1]} 7. Nc4 {[%clk 0:02:50.6]} 7... Qc7 {[%clk 0:02:25.6]} 8. Qf3
{[%clk 0:02:50.3]} 8... Nd5 {[%clk 0:02:19.2]} 9. Nxd5 {[%clk 0:02:43.2]} 9...
cxd5 {[%clk 0:02:19.4]} 10. Qxd5 {[%clk 0:02:41.9]} 10... Nf6 {[%clk 0:02:18.7]}
11. Qf3 {[%clk 0:02:39.1]} 11... Be6 {[%clk 0:02:16.8]} 12. Bf4 {[%clk
0:02:35.5]} 12... Qc8 {[%clk 0:02:11.2]} 13. Ne3 {[%clk 0:02:07.6]} 13... Qd7
{[%clk 0:02:04.2]} 14. O-O-O {[%clk 0:01:51.4]} 14... Bxa2 {[%clk 0:01:55.9]}
15. b3 {[%clk 0:01:34]} 15... e5 {[%clk 0:01:55.2]} 16. Bxe5 {[%clk 0:01:17.8]}
16... Ba3+ {[%clk 0:01:45.7]} 17. Kd2 {[%clk 0:01:16]} 17... Bb4+ {[%clk
0:01:24]} 18. c3 {[%clk 0:01:08.5]} 18... Bd6 {[%clk 0:01:03.2]} 19. Bxf6 {[%clk
0:01:00.5]} 19... gxf6 {[%clk 0:00:56.7]} 20. Kc2 {[%clk 0:00:56.1]} 20... a5
{[%clk 0:00:48.2]} 21. Qd5 {[%clk 0:00:46.3]} 21... a4 {[%clk 0:00:40.8]} 22.
Bb5 {[%clk 0:00:19]} 22... Bxb3+ {[%clk 0:00:40.3]} 23. Kd3 {[%clk 0:00:19]}
23... Bxd5 {[%clk 0:00:36.3]} 24. Bxd7+ {[%clk 0:00:18.6]} 24... Kxd7 {[%clk
0:00:36.5]} 25. Nxd5 {[%clk 0:00:19.4]} 25... Ke6 {[%clk 0:00:32.1]} 26. c4
{[%clk 0:00:19.7]} 26... a3 {[%clk 0:00:22]} 27. Rhe1+ {[%clk 0:00:19.3]} 27...
Kf5 {[%clk 0:00:22]} 28. c5 {[%clk 0:00:18.9]} 28... Bxh2 {[%clk 0:00:14.8]} 29.
g3 {[%clk 0:00:18.2]} 29... Kg4 {[%clk 0:00:11.9]} 30. Rh1 {[%clk 0:00:18.2]}
30... Kh3 {[%clk 0:00:09.7]} 31. Nf4+ {[%clk 0:00:18.2]} 31... Kg4 {[%clk
0:00:09.3]} 32. Rxh2 {[%clk 0:00:18.9]} 32... a2 {[%clk 0:00:08]} 33. Rh4+
{[%clk 0:00:17.6]} 33... Kf3 {[%clk 0:00:07.5]} 34. Rhh1 {[%clk 0:00:13.8]}
34... Kxf2 {[%clk 0:00:07.7]} 35. Nh5 {[%clk 0:00:12.8]} 35... f5 {[%clk
0:00:06.7]} 36. Kc3 {[%clk 0:00:09.6]} 36... Ra3+ {[%clk 0:00:03]} 37. Kb2
{[%clk 0:00:09.6]} 37... Ra6 {[%clk 0:00:03.3]} 38. Rhf1+ {[%clk 0:00:09.4]}
38... Kg2 {[%clk 0:00:03.5]} 39. Rxf5 {[%clk 0:00:08]} 39... Rg8 {[%clk
0:00:03.4]} 40. Rff1 {[%clk 0:00:06.2]} 40... Rg5 {[%clk 0:00:03]} 41. Rg1+
{[%clk 0:00:06.7]} 41... Kf3 {[%clk 0:00:03]} 42. Rdf1+ {[%clk 0:00:05.2]} 42...
Ke4 {[%clk 0:00:03.1]} 43. Nf6+ {[%clk 0:00:04.2]} 43... Kxd4 {[%clk 0:00:03.3]}
44. Rd1+ {[%clk 0:00:04.5]} 44... Kxc5 {[%clk 0:00:03.8]} 45. Ne4+ {[%clk
0:00:04.6]} 45... Kc4 {[%clk 0:00:03.5]} 46. Nxg5 {[%clk 0:00:05.5]} 46... b5
{[%clk 0:00:03.4]} 47. Rc1+ {[%clk 0:00:04.8]} 47... Kd4 {[%clk 0:00:03.5]} 48.
Rgd1+ {[%clk 0:00:04.3]} 48... Ke3 {[%clk 0:00:03.2]} 49. Nxf7 {[%clk 0:00:03]}
49... a1=Q+ {[%clk 0:00:04.1]} 50. Rxa1 {[%clk 0:00:02.9]} 50... Rf6 {[%clk
0:00:04.7]} 51. Re1+ {[%clk 0:00:03.1]} 51... Kd2 {[%clk 0:00:04.8]} 52. Ne5
{[%clk 0:00:04]} 52... Rf2 {[%clk 0:00:04.4]} 53. Kb3 {[%clk 0:00:03.8]} 53...
Re2 {[%clk 0:00:01.9]} 54. Rad1+ {[%clk 0:00:04.7]} 54... Ke3 {[%clk 0:00:02.1]}
55. Rxe2+ {[%clk 0:00:05.6]} 55... Kxe2 {[%clk 0:00:02.8]} 56. Rd7 {[%clk
0:00:06.1]} 56... Ke3 {[%clk 0:00:03.1]} 57. Rxh7 {[%clk 0:00:06.3]} 57... Ke4
{[%clk 0:00:04]} 58. Re7 {[%clk 0:00:07]} 58... Kf5 {[%clk 0:00:04.1]} 59. g4+
{[%clk 0:00:07.9]} 59... Kf6 {[%clk 0:00:04.2]} 60. Nc6 {[%clk 0:00:08]} 60...
Kg5 {[%clk 0:00:04.6]} 61. Kb4 {[%clk 0:00:08.6]} 61... Kxg4 {[%clk 0:00:05.5]}
62. Kxb5 {[%clk 0:00:09.5]} 62... Kf3 {[%clk 0:00:06.3]} 63. Kc5 {[%clk
0:00:09.5]} 63... Kf2 {[%clk 0:00:07.2]} 64. Nd4 {[%clk 0:00:10.4]} 64... Kg3
{[%clk 0:00:06.7]} 65. Re4 {[%clk 0:00:10.2]} 65... Kf2 {[%clk 0:00:07.6]} 66.
Kc4 {[%clk 0:00:08.6]} 66... Kf1 {[%clk 0:00:08.4]} 67. Re2 {[%clk 0:00:08]}
67... Kg1 {[%clk 0:00:08.2]} 68. Kd3 {[%clk 0:00:08.9]} 68... Kh1 {[%clk
0:00:08.7]} 69. Ke3 {[%clk 0:00:09.8]} 69... Kg1 {[%clk 0:00:08.9]} 70. Nf3+
{[%clk 0:00:10]} 70... Kf1 {[%clk 0:00:09.4]} 71. Rf2# {[%clk 0:00:10.6]} 1-0